[Event "Late-Titled-Tuesday-Blitz-March-19-2024"]
[Site "Chess.com"]
[Date "2024.03.19"]
[Round "6"]
[White "Charodej1"]
[Black "AsterPhoenix"]
[Result "0-1"]
[WhiteElo "2388"]
[BlackElo "2652"]
[TimeControl "180+1"]
[EndTime "15:05:50 PDT"]
[Termination "AsterPhoenix won by resignation"]

1. e4 {[%clk 0:02:55.3]} 1... c5 {[%clk 0:02:59]} 2. Nf3 {[%clk 0:02:54]} 2...
d6 {[%clk 0:02:59.4]} 3. d4 {[%clk 0:02:54.7]} 3... cxd4 {[%clk 0:03:00]} 4.
Nxd4 {[%clk 0:02:55.3]} 4... Nf6 {[%clk 0:03:00.3]} 5. Nc3 {[%clk 0:02:55.1]}
5... a6 {[%clk 0:03:00.9]} 6. Be2 {[%clk 0:02:55]} 6... e5 {[%clk 0:03:00.7]} 7.
Nb3 {[%clk 0:02:55.8]} 7... Be7 {[%clk 0:03:00.7]} 8. O-O {[%clk 0:02:55.8]}
8... O-O {[%clk 0:02:59.7]} 9. Kh1 {[%clk 0:02:56.5]} 9... Be6 {[%clk
0:02:44.1]} 10. f4 {[%clk 0:02:55.9]} 10... b5 {[%clk 0:02:43.6]} 11. f5 {[%clk
0:02:49.8]} 11... Bd7 {[%clk 0:02:40.2]} 12. a3 {[%clk 0:02:32.8]} 12... Bc6
{[%clk 0:02:39.4]} 13. Bf3 {[%clk 0:02:32]} 13... Nbd7 {[%clk 0:02:36.2]} 14.
Bg5 {[%clk 0:02:16.7]} 14... a5 {[%clk 0:02:24.4]} 15. Bxf6 {[%clk 0:01:59]}
15... Nxf6 {[%clk 0:02:23]} 16. Qd3 {[%clk 0:01:30.6]} 16... Qb6 {[%clk
0:02:17.7]} 17. Nd5 {[%clk 0:01:03.9]} 17... Bxd5 {[%clk 0:02:14.4]} 18. exd5
{[%clk 0:01:04.5]} 18... Rfc8 {[%clk 0:02:11.4]} 19. c3 {[%clk 0:01:02.7]} 19...
Rc4 {[%clk 0:01:56.3]} 20. Nd2 {[%clk 0:00:55]} 20... Rc5 {[%clk 0:01:44]} 21.
b4 {[%clk 0:00:40.8]} 21... Rc7 {[%clk 0:01:36.9]} 22. Rfb1 {[%clk 0:00:37.2]}
22... a4 {[%clk 0:01:29.9]} 23. c4 {[%clk 0:00:33.3]} 23... bxc4 {[%clk
0:01:26.2]} 24. Nxc4 {[%clk 0:00:33.5]} 24... Qb5 {[%clk 0:01:14.1]} 25. Nxe5
{[%clk 0:00:21.7]} 25... Qxd3 {[%clk 0:01:15]} 26. Nxd3 {[%clk 0:00:22.1]} 26...
Rc3 {[%clk 0:01:15.4]} 27. Nf4 {[%clk 0:00:19.1]} 27... Nd7 {[%clk 0:01:13.3]}
28. Rc1 {[%clk 0:00:18.3]} 28... Rac8 {[%clk 0:01:12.1]} 29. Rxc3 {[%clk
0:00:17.4]} 29... Rxc3 {[%clk 0:01:13]} 30. Ne2 {[%clk 0:00:17.2]} 30... Rb3
{[%clk 0:01:03.2]} 31. Nd4 {[%clk 0:00:17.2]} 31... Rb2 {[%clk 0:01:01.1]} 32.
Nb5 {[%clk 0:00:14.4]} 32... Nb6 {[%clk 0:00:43.9]} 33. Rc1 {[%clk 0:00:14.2]}
33... g6 {[%clk 0:00:37.2]} 34. fxg6 {[%clk 0:00:13.6]} 34... hxg6 {[%clk
0:00:36.4]} 35. h3 {[%clk 0:00:14.1]} 35... Bg5 {[%clk 0:00:29.3]} 36. Rd1
{[%clk 0:00:07.7]} 36... Nc4 {[%clk 0:00:26.6]} 37. Kg1 {[%clk 0:00:06.6]} 37...
Be3+ {[%clk 0:00:24.5]} 38. Kf1 {[%clk 0:00:06.2]} 38... Bf4 {[%clk 0:00:19.8]}
39. Kg1 {[%clk 0:00:03.7]} 39... Be3+ {[%clk 0:00:19.5]} 40. Kh1 {[%clk
0:00:04]} 40... Bf4 {[%clk 0:00:17.8]} 41. Kg1 {[%clk 0:00:04.1]} 41... Be5
{[%clk 0:00:16.2]} 42. Rc1 {[%clk 0:00:02.9]} 42... Nd2 {[%clk 0:00:12.4]} 43.
Nc3 {[%clk 0:00:02.2]} 43... Nb3 {[%clk 0:00:10.1]} 44. b5 {[%clk 0:00:02.4]}
44... Nxc1 {[%clk 0:00:09.4]} 45. b6 {[%clk 0:00:02.9]} 45... Bxc3 {[%clk
0:00:08.8]} 0-1

[Event "Late-Titled-Tuesday-Blitz-March-19-2024"]
[Site "Chess.com"]
[Date "2024.03.19"]
[Round "6"]
[White "bazar-wokzal"]
[Black "hell3raiser"]
[Result "1/2-1/2"]
[WhiteElo "2547"]
[BlackElo "2346"]
[TimeControl "180+1"]
[EndTime "15:05:52 PDT"]
[Termination "Game drawn by agreement"]

1. e4 {[%clk 0:03:00.9]} 1... e5 {[%clk 0:02:59.5]} 2. Bc4 {[%clk 0:03:00.4]}
2... Nf6 {[%clk 0:02:58]} 3. d3 {[%clk 0:03:00.4]} 3... Nc6 {[%clk 0:02:57.6]}
4. Nf3 {[%clk 0:03:00.7]} 4... Bc5 {[%clk 0:02:56.6]} 5. Bg5 {[%clk 0:03:00.2]}
5... d6 {[%clk 0:02:54.5]} 6. Nc3 {[%clk 0:03:00]} 6... h6 {[%clk 0:02:53.7]} 7.
Bh4 {[%clk 0:03:00.5]} 7... g5 {[%clk 0:02:50]} 8. Bg3 {[%clk 0:03:00.9]} 8...
Be6 {[%clk 0:02:49.6]} 9. Nd2 {[%clk 0:03:00.3]} 9... Qe7 {[%clk 0:02:43.5]} 10.
h4 {[%clk 0:02:59.5]} 10... O-O-O {[%clk 0:02:41.8]} 11. Nd5 {[%clk 0:02:57.3]}
11... Bxd5 {[%clk 0:02:41.1]} 12. exd5 {[%clk 0:02:57.7]} 12... Nd4 {[%clk
0:02:41.2]} 13. c3 {[%clk 0:02:56.5]} 13... Nf5 {[%clk 0:02:41.2]} 14. Qf3
{[%clk 0:02:53.5]} 14... Nxg3 {[%clk 0:02:37.7]} 15. fxg3 {[%clk 0:02:52.9]}
15... g4 {[%clk 0:02:11.4]} 16. Qf5+ {[%clk 0:02:52.3]} 16... Kb8 {[%clk
0:02:11.4]} 17. O-O-O {[%clk 0:02:47.8]} 17... b5 {[%clk 0:02:03]} 18. Bb3
{[%clk 0:02:37.7]} 18... h5 {[%clk 0:01:57.1]} 19. Rhf1 {[%clk 0:02:33.6]} 19...
Rh6 {[%clk 0:01:56.8]} 20. a4 {[%clk 0:02:23.4]} 20... bxa4 {[%clk 0:01:54.8]}
21. Bxa4 {[%clk 0:02:22.1]} 21... Nxd5 {[%clk 0:01:54.5]} 22. Qxf7 {[%clk
0:02:20.5]} 22... Qxf7 {[%clk 0:01:52.5]} 23. Rxf7 {[%clk 0:02:19.9]} 23... Ne3
{[%clk 0:01:52.9]} 24. Re1 {[%clk 0:02:12.7]} 24... Nxg2 {[%clk 0:01:52.5]} 25.
Re2 {[%clk 0:02:13]} 25... Ne3 {[%clk 0:01:48.9]} 26. Ne4 {[%clk 0:02:11.5]}
26... Bb6 {[%clk 0:01:48.5]} 27. Bc6 {[%clk 0:02:06.7]} 27... d5 {[%clk
0:01:42.6]} 28. Nf6 {[%clk 0:02:06.4]} 28... d4 {[%clk 0:01:32]} 29. cxd4 {[%clk
0:02:03.3]} 29... exd4 {[%clk 0:01:32]} 30. Rf2 {[%clk 0:01:52.4]} 30... a5
{[%clk 0:01:22.8]} 31. Nd7+ {[%clk 0:01:47]} 31... Ka7 {[%clk 0:01:22.6]} 32.
R2f6 {[%clk 0:01:47]} 32... Rxf6 {[%clk 0:01:21.9]} 33. Rxf6 {[%clk 0:01:47.4]}
33... Nd5 {[%clk 0:01:15.4]} 34. Rf5 {[%clk 0:01:42.5]} 34... Nb4 {[%clk
0:01:15.4]} 35. Nxb6 {[%clk 0:01:33.3]} 35... Kxb6 {[%clk 0:01:12]} 36. Be4
{[%clk 0:01:33]} 36... c5 {[%clk 0:01:05.3]} 37. Rxh5 {[%clk 0:01:32.5]} 37...
c4 {[%clk 0:01:04.3]} 38. dxc4 {[%clk 0:01:27.8]} 38... d3 {[%clk 0:01:04.6]}
39. Kd2 {[%clk 0:01:27.3]} 39... Re8 {[%clk 0:00:59.6]} 40. c5+ {[%clk
0:01:24.9]} 40... Kb5 {[%clk 0:00:49.3]} 41. Bxd3+ {[%clk 0:01:24.5]} 41... Nxd3
{[%clk 0:00:46.8]} 42. Kxd3 {[%clk 0:01:24.6]} 42... Rf8 {[%clk 0:00:45.1]} 43.
Rg5 {[%clk 0:01:21.1]} 43... Rf3+ {[%clk 0:00:44.7]} 44. Kc2 {[%clk 0:01:21]}
44... Rxg3 {[%clk 0:00:44.6]} 45. h5 {[%clk 0:01:19.7]} 45... Rh3 {[%clk
0:00:42.2]} 46. c6+ {[%clk 0:01:08.1]} 46... Kxc6 {[%clk 0:00:40.3]} 47. Rxa5
{[%clk 0:01:08.1]} 47... g3 {[%clk 0:00:39.4]} 48. Rg5 {[%clk 0:01:07.7]} 48...
g2 {[%clk 0:00:39.4]} 49. Rxg2 {[%clk 0:01:01.1]} 49... Rxh5 {[%clk 0:00:39.4]}
50. Kb3 {[%clk 0:00:58]} 50... Kb6 {[%clk 0:00:39.4]} 51. Ka4 {[%clk 0:00:56.9]}
51... Rh4+ {[%clk 0:00:38.6]} 52. b4 {[%clk 0:00:56.9]} 52... Rh5 {[%clk
0:00:38.9]} 53. Rg6+ {[%clk 0:00:56.8]} 53... Kb7 {[%clk 0:00:39.1]} 54. Rf6
{[%clk 0:00:56]} 54... Rg5 {[%clk 0:00:39]} 55. Re6 {[%clk 0:00:55.9]} 55... Rh5
{[%clk 0:00:39.2]} 56. b5 {[%clk 0:00:56.1]} 56... Rg5 {[%clk 0:00:36.2]} 57.
Ka5 {[%clk 0:00:55.9]} 57... Rg7 {[%clk 0:00:36.2]} 58. Rh6 {[%clk 0:00:55.4]}
58... Rf7 {[%clk 0:00:36.3]} 59. Ra6 {[%clk 0:00:54.8]} 59... Rg7 {[%clk
0:00:36.1]} 60. Rb6+ {[%clk 0:00:55.2]} 60... Ka7 {[%clk 0:00:35.8]} 61. Rc6
{[%clk 0:00:55.6]} 61... Kb7 {[%clk 0:00:35.9]} 62. Rc5 {[%clk 0:00:54.4]} 62...
Rf7 {[%clk 0:00:35.1]} 63. Rd5 {[%clk 0:00:54.5]} 63... Rg7 {[%clk 0:00:35.3]}
64. Kb4 {[%clk 0:00:52.1]} 64... Rh7 {[%clk 0:00:34.6]} 65. Kc5 {[%clk
0:00:52.2]} 65... Rc7+ {[%clk 0:00:34.1]} 66. Kd6 {[%clk 0:00:51.5]} 66... Rh7
{[%clk 0:00:33.7]} 67. Kc5 {[%clk 0:00:49.1]} 67... Rc7+ {[%clk 0:00:33.1]} 68.
Kb4 {[%clk 0:00:49.4]} 68... Rh7 {[%clk 0:00:33.7]} 69. Rd6 {[%clk 0:00:49.6]}
69... Rg7 {[%clk 0:00:33.5]} 70. Kc5 {[%clk 0:00:48.1]} 70... Rh7 {[%clk
0:00:33.8]} 1/2-1/2

[Event "Late-Titled-Tuesday-Blitz-March-19-2024"]
[Site "Chess.com"]
[Date "2024.03.19"]
[Round "6"]
[White "Adar_07"]
[Black "Bilan_Danila"]
[Result "0-1"]
[WhiteElo "2824"]
[BlackElo "2645"]
[TimeControl "180+1"]
[EndTime "15:05:53 PDT"]
[Termination "Bilan_Danila won by resignation"]

1. d4 {[%clk 0:03:00.9]} 1... d5 {[%clk 0:02:59.3]} 2. c4 {[%clk 0:03:00.6]}
2... c6 {[%clk 0:02:59.3]} 3. Nf3 {[%clk 0:02:57.4]} 3... Nf6 {[%clk 0:02:59.4]}
4. Nc3 {[%clk 0:02:54]} 4... dxc4 {[%clk 0:02:59.9]} 5. e4 {[%clk 0:02:53.6]}
5... b5 {[%clk 0:02:59.7]} 6. e5 {[%clk 0:02:52.2]} 6... Nd5 {[%clk 0:02:59.5]}
7. a4 {[%clk 0:02:47.3]} 7... e6 {[%clk 0:02:48]} 8. axb5 {[%clk 0:02:47]} 8...
Nxc3 {[%clk 0:02:48.2]} 9. bxc3 {[%clk 0:02:47.1]} 9... cxb5 {[%clk 0:02:48.8]}
10. Ng5 {[%clk 0:02:42.3]} 10... Bb7 {[%clk 0:02:45.5]} 11. Be2 {[%clk
0:02:38.7]} 11... Be7 {[%clk 0:02:35.1]} 12. Bf3 {[%clk 0:02:34.5]} 12... Bd5
{[%clk 0:02:35.4]} 13. h4 {[%clk 0:02:27]} 13... Nc6 {[%clk 0:02:25.8]} 14. Ra6
{[%clk 0:02:09.5]} 14... Qc8 {[%clk 0:02:07.7]} 15. Bxd5 {[%clk 0:02:00.3]}
15... Qxa6 {[%clk 0:01:53.2]} 16. Qf3 {[%clk 0:01:59.9]} 16... exd5 {[%clk
0:01:33.9]} 17. Qxf7+ {[%clk 0:01:58.3]} 17... Kd7 {[%clk 0:01:32.1]} 18. Qxd5+
{[%clk 0:01:59.2]} 18... Kc7 {[%clk 0:01:31.1]} 19. Qf7 {[%clk 0:01:13.4]} 19...
Rae8 {[%clk 0:00:59.8]} 20. O-O {[%clk 0:00:24.2]} 20... Kb8 {[%clk 0:00:55.6]}
21. Ne6 {[%clk 0:00:16.8]} 21... Nd8 {[%clk 0:00:45.5]} 22. Nxd8 {[%clk
0:00:15.5]} 22... Bxd8 {[%clk 0:00:46.4]} 23. Bf4 {[%clk 0:00:12.1]} 23... Rhf8
{[%clk 0:00:35.1]} 24. e6+ {[%clk 0:00:01.9]} 24... Ka8 {[%clk 0:00:34.8]} 25.
Qh5 {[%clk 0:00:02.6]} 25... Qxe6 {[%clk 0:00:26.4]} 26. Bg3 {[%clk 0:00:02.7]}
26... Qf5 {[%clk 0:00:22.6]} 27. Qd1 {[%clk 0:00:02.2]} 27... Rf7 {[%clk
0:00:18.1]} 28. Qa1 {[%clk 0:00:02.1]} 28... Bc7 {[%clk 0:00:15.5]} 29. Rb1
{[%clk 0:00:01.9]} 29... Bxg3 {[%clk 0:00:14.3]} 30. fxg3 {[%clk 0:00:02.8]}
30... Rb7 {[%clk 0:00:13.5]} 31. Kh2 {[%clk 0:00:02.5]} 31... Reb8 {[%clk
0:00:13.7]} 32. Rf1 {[%clk 0:00:02.4]} 32... Qd5 {[%clk 0:00:13.6]} 33. Rf4
{[%clk 0:00:02.2]} 33... b4 {[%clk 0:00:13.8]} 34. cxb4 {[%clk 0:00:02.5]} 34...
Rxb4 {[%clk 0:00:14.7]} 35. Qc1 {[%clk 0:00:01.7]} 35... Rb2 {[%clk 0:00:14.5]}
36. Qf1 {[%clk 0:00:01.6]} 36... c3 {[%clk 0:00:14.3]} 37. Rf5 {[%clk
0:00:01.8]} 37... Qe4 {[%clk 0:00:13.8]} 38. Rf4 {[%clk 0:00:01.9]} 38... Qd5
{[%clk 0:00:13.8]} 39. Rf5 {[%clk 0:00:02.2]} 39... Qxd4 {[%clk 0:00:12.1]} 40.
Qf3+ {[%clk 0:00:02.3]} 40... R2b7 {[%clk 0:00:11.4]} 41. Rf7 {[%clk 0:00:02.2]}
41... Qc5 {[%clk 0:00:10.3]} 42. Rxb7 {[%clk 0:00:02.1]} 42... Rxb7 {[%clk
0:00:11.2]} 43. Qe4 {[%clk 0:00:02.6]} 43... a6 {[%clk 0:00:11.2]} 44. Qe8+
{[%clk 0:00:02.6]} 44... Ka7 {[%clk 0:00:11.8]} 45. Qe4 {[%clk 0:00:03.2]} 45...
c2 {[%clk 0:00:11.8]} 0-1

[Event "Late-Titled-Tuesday-Blitz-March-19-2024"]
[Site "Chess.com"]
[Date "2024.03.19"]
[Round "6"]
[White "Dr_Pepper18"]
[Black "Navyblue1"]
[Result "1-0"]
[WhiteElo "2433"]
[BlackElo "2210"]
[TimeControl "180+1"]
[EndTime "15:05:57 PDT"]
[Termination "Dr_Pepper18 won by resignation"]

1. d4 {[%clk 0:03:00.9]} 1... Nf6 {[%clk 0:02:55.8]} 2. c4 {[%clk 0:03:01.3]}
2... g6 {[%clk 0:02:56.2]} 3. Nf3 {[%clk 0:03:01]} 3... Bg7 {[%clk 0:02:56.7]}
4. g3 {[%clk 0:03:01.7]} 4... O-O {[%clk 0:02:56.2]} 5. Bg2 {[%clk 0:03:01.7]}
5... d6 {[%clk 0:02:56.7]} 6. O-O {[%clk 0:03:01.7]} 6... c6 {[%clk 0:02:57.2]}
7. Nc3 {[%clk 0:03:01.5]} 7... Qb6 {[%clk 0:02:56.9]} 8. b3 {[%clk 0:02:53.6]}
8... Nbd7 {[%clk 0:02:46.9]} 9. Bb2 {[%clk 0:02:52.4]} 9... Qa6 {[%clk
0:02:44.4]} 10. e4 {[%clk 0:02:46]} 10... e5 {[%clk 0:02:42.2]} 11. Qc2 {[%clk
0:02:44.4]} 11... exd4 {[%clk 0:02:37.4]} 12. Nxd4 {[%clk 0:02:45.3]} 12... Rb8
{[%clk 0:02:37]} 13. Rfd1 {[%clk 0:02:45.1]} 13... Re8 {[%clk 0:02:25.2]} 14. h3
{[%clk 0:02:41.8]} 14... Nc5 {[%clk 0:02:15.5]} 15. Nde2 {[%clk 0:02:32.4]}
15... Qb6 {[%clk 0:00:51.2]} 16. Rab1 {[%clk 0:01:56.7]} 16... Qc7 {[%clk
0:00:40.1]} 17. Bc1 {[%clk 0:01:36.2]} 17... h5 {[%clk 0:00:36.6]} 18. Bf4
{[%clk 0:01:35.9]} 18... Nfxe4 {[%clk 0:00:24.2]} 19. Nxe4 {[%clk 0:01:32.4]}
19... Nxe4 {[%clk 0:00:24.3]} 20. Bxe4 {[%clk 0:01:32.6]} 20... Rxe4 {[%clk
0:00:24]} 21. Qxe4 {[%clk 0:01:28.8]} 21... Bf5 {[%clk 0:00:23.5]} 22. Qe3
{[%clk 0:01:28.7]} 22... Bxb1 {[%clk 0:00:23.2]} 23. Rxb1 {[%clk 0:01:29.6]}
23... Rd8 {[%clk 0:00:20.7]} 24. Rd1 {[%clk 0:01:29]} 24... Qa5 {[%clk
0:00:18.8]} 25. a4 {[%clk 0:01:22.2]} 25... d5 {[%clk 0:00:18.1]} 26. cxd5
{[%clk 0:01:22.7]} 26... cxd5 {[%clk 0:00:18.2]} 27. Nd4 {[%clk 0:01:19.7]}
27... Qb6 {[%clk 0:00:17.2]} 28. Nb5 {[%clk 0:01:19.4]} 28... d4 {[%clk
0:00:16.3]} 29. Qe7 {[%clk 0:01:17.7]} 29... Bf8 {[%clk 0:00:15.9]} 30. Qc7
{[%clk 0:01:16.8]} 30... Qxc7 {[%clk 0:00:15.6]} 31. Bxc7 {[%clk 0:01:16.3]}
31... Rc8 {[%clk 0:00:14.8]} 32. Bf4 {[%clk 0:01:11.5]} 32... a6 {[%clk
0:00:15.1]} 33. Nxd4 {[%clk 0:01:11.4]} 33... Rc3 {[%clk 0:00:15.5]} 34. Rc1
{[%clk 0:01:04.5]} 34... Rd3 {[%clk 0:00:15.1]} 35. Be3 {[%clk 0:01:03.4]} 35...
Bg7 {[%clk 0:00:14.3]} 36. Rc4 {[%clk 0:01:04]} 36... Rd1+ {[%clk 0:00:13]} 37.
Kg2 {[%clk 0:01:03.8]} 37... Kh7 {[%clk 0:00:13.8]} 38. Rb4 {[%clk 0:01:04.2]}
38... b5 {[%clk 0:00:13.2]} 39. axb5 {[%clk 0:01:04.2]} 39... axb5 {[%clk
0:00:13.5]} 40. Rxb5 {[%clk 0:01:04.8]} 40... Bxd4 {[%clk 0:00:12.7]} 41. Rd5
{[%clk 0:01:05.4]} 41... Rb1 {[%clk 0:00:12.8]} 42. Bxd4 {[%clk 0:00:56.7]}
42... Rxb3 {[%clk 0:00:13.1]} 43. Rd8 {[%clk 0:00:57.6]} 43... g5 {[%clk
0:00:12.7]} 44. Rh8+ {[%clk 0:00:56.9]} 44... Kg6 {[%clk 0:00:13.4]} 45. Rg8+
{[%clk 0:00:57.6]} 45... Kf5 {[%clk 0:00:13.5]} 46. Rg7 {[%clk 0:00:55.8]} 46...
Rb7 {[%clk 0:00:12.8]} 47. Be3 {[%clk 0:00:54.5]} 47... g4 {[%clk 0:00:10.4]}
48. hxg4+ {[%clk 0:00:55.4]} 48... hxg4 {[%clk 0:00:10.8]} 49. Rg5+ {[%clk
0:00:56]} 49... Ke6 {[%clk 0:00:11.5]} 50. Rxg4 {[%clk 0:00:56.9]} 50... Kf6
{[%clk 0:00:12.4]} 51. Rf4+ {[%clk 0:00:56.5]} 51... Ke5 {[%clk 0:00:12.7]} 52.
Rd4 {[%clk 0:00:57.4]} 52... f5 {[%clk 0:00:12.1]} 53. Rf4 {[%clk 0:00:58.3]}
53... Ke6 {[%clk 0:00:12.4]} 54. Bd4 {[%clk 0:00:58.6]} 54... Rb4 {[%clk
0:00:12.2]} 55. Be3 {[%clk 0:00:58.3]} 55... Rb2 {[%clk 0:00:12.4]} 56. Rh4
{[%clk 0:00:57.5]} 56... Re2 {[%clk 0:00:12.6]} 57. Kf3 {[%clk 0:00:57.4]} 57...
Ra2 {[%clk 0:00:12.2]} 58. Rh6+ {[%clk 0:00:57.5]} 58... Ke5 {[%clk 0:00:12.2]}
59. Bf4+ {[%clk 0:00:58]} 59... Kd5 {[%clk 0:00:12.5]} 60. Rd6+ {[%clk
0:00:58.9]} 60... Kc5 {[%clk 0:00:12.5]} 61. Rf6 {[%clk 0:00:59.8]} 61... Ra3+
{[%clk 0:00:12.1]} 62. Kg2 {[%clk 0:01:00]} 62... Kd4 {[%clk 0:00:12.5]} 63.
Rxf5 {[%clk 0:01:00.9]} 63... Ke4 {[%clk 0:00:13]} 64. Re5+ {[%clk 0:01:01.5]}
64... Kd4 {[%clk 0:00:13.7]} 65. Re3 {[%clk 0:01:01]} 65... Ra2 {[%clk
0:00:13.4]} 66. Rf3 {[%clk 0:01:00.9]} 66... Ke4 {[%clk 0:00:13.6]} 67. Be3
{[%clk 0:01:01.1]} 67... Rc2 {[%clk 0:00:13.1]} 68. Rf4+ {[%clk 0:01:01]} 68...
Kd3 {[%clk 0:00:13.7]} 69. g4 {[%clk 0:01:01.9]} 69... Ke2 {[%clk 0:00:14]} 70.
Rd4 {[%clk 0:01:02]} 70... Rc6 {[%clk 0:00:14.2]} 71. g5 {[%clk 0:01:01.4]}
71... Rg6 {[%clk 0:00:13.4]} 72. Kg3 {[%clk 0:01:01.9]} 1-0

[Event "Late-Titled-Tuesday-Blitz-March-19-2024"]
[Site "Chess.com"]
[Date "2024.03.19"]
[Round "6"]
[White "steepedgames"]
[Black "Meri-Arabidze"]
[Result "0-1"]
[WhiteElo "2531"]
[BlackElo "2680"]
[TimeControl "180+1"]
[EndTime "15:05:58 PDT"]
[Termination "Meri-Arabidze won by resignation"]

1. e4 {[%clk 0:02:56.6]} 1... c5 {[%clk 0:03:00.2]} 2. Nf3 {[%clk 0:02:56.4]}
2... e6 {[%clk 0:03:00.6]} 3. c3 {[%clk 0:02:57.1]} 3... Nf6 {[%clk 0:02:58]} 4.
d3 {[%clk 0:02:53.1]} 4... Nc6 {[%clk 0:02:54.9]} 5. Be2 {[%clk 0:02:52.7]} 5...
d5 {[%clk 0:02:52.7]} 6. e5 {[%clk 0:02:50]} 6... Nd7 {[%clk 0:02:52.4]} 7. d4
{[%clk 0:02:50.5]} 7... Be7 {[%clk 0:02:45.5]} 8. O-O {[%clk 0:02:49.5]} 8...
O-O {[%clk 0:02:44.8]} 9. Bf4 {[%clk 0:02:47.8]} 9... b6 {[%clk 0:02:42.7]} 10.
Na3 {[%clk 0:02:44.5]} 10... a5 {[%clk 0:02:30.7]} 11. Nb5 {[%clk 0:02:43]}
11... Ba6 {[%clk 0:02:30.8]} 12. a4 {[%clk 0:02:40.9]} 12... c4 {[%clk
0:02:28.7]} 13. Nd6 {[%clk 0:02:16.5]} 13... Bxd6 {[%clk 0:02:23.6]} 14. exd6
{[%clk 0:02:17.4]} 14... Nf6 {[%clk 0:02:22.9]} 15. h3 {[%clk 0:02:08.5]} 15...
Ne4 {[%clk 0:02:21.4]} 16. Ne5 {[%clk 0:02:05.2]} 16... Bb7 {[%clk 0:02:15.2]}
17. d7 {[%clk 0:01:55.1]} 17... Nxe5 {[%clk 0:02:10.5]} 18. dxe5 {[%clk
0:01:56]} 18... Nc5 {[%clk 0:02:00.2]} 19. Be3 {[%clk 0:01:52.6]} 19... Nxd7
{[%clk 0:01:57.9]} 20. f4 {[%clk 0:01:52.8]} 20... Qc7 {[%clk 0:01:50.9]} 21.
Bd4 {[%clk 0:01:50.8]} 21... Nc5 {[%clk 0:01:41.4]} 22. f5 {[%clk 0:01:47.6]}
22... exf5 {[%clk 0:01:41.8]} 23. Rxf5 {[%clk 0:01:47.4]} 23... Bc8 {[%clk
0:01:30.8]} 24. Rh5 {[%clk 0:01:44.6]} 24... Be6 {[%clk 0:01:26.3]} 25. Qc2
{[%clk 0:01:34.5]} 25... g6 {[%clk 0:01:21.8]} 26. Rh4 {[%clk 0:01:24.1]} 26...
Ne4 {[%clk 0:01:21]} 27. Qc1 {[%clk 0:01:21.7]} 27... Ng3 {[%clk 0:01:05.9]} 28.
Bg4 {[%clk 0:00:40.7]} 28... Bxg4 {[%clk 0:01:01]} 29. Qg5 {[%clk 0:00:36.4]}
29... Ne2+ {[%clk 0:00:54.4]} 30. Kh1 {[%clk 0:00:34.1]} 30... Nxd4 {[%clk
0:00:51.4]} 31. cxd4 {[%clk 0:00:34.6]} 31... Bf5 {[%clk 0:00:43]} 32. Rf1
{[%clk 0:00:31.8]} 32... Qd7 {[%clk 0:00:24.3]} 33. g4 {[%clk 0:00:28.6]} 33...
Be4+ {[%clk 0:00:23.6]} 34. Kh2 {[%clk 0:00:29.3]} 34... f6 {[%clk 0:00:20.3]}
35. exf6 {[%clk 0:00:26.2]} 35... Rf7 {[%clk 0:00:20.7]} 36. Rh6 {[%clk
0:00:11.5]} 36... Raf8 {[%clk 0:00:20.4]} 37. h4 {[%clk 0:00:11.3]} 37... Qd6+
{[%clk 0:00:19.3]} 38. Kh3 {[%clk 0:00:10.9]} 38... Rxf6 {[%clk 0:00:17.2]} 39.
Rxf6 {[%clk 0:00:10.5]} 39... Qxf6 {[%clk 0:00:16.7]} 40. Qxf6 {[%clk
0:00:09.9]} 40... Rxf6 {[%clk 0:00:17.6]} 41. h5 {[%clk 0:00:10.6]} 41... Kg7
{[%clk 0:00:16.7]} 42. g5 {[%clk 0:00:09.2]} 42... Rf3+ {[%clk 0:00:16.7]} 43.
Kg4 {[%clk 0:00:09.6]} 43... Rb3 {[%clk 0:00:15]} 44. hxg6 {[%clk 0:00:09.2]}
44... Bxg6 {[%clk 0:00:15.3]} 45. Rh2 {[%clk 0:00:08]} 45... Rd3 {[%clk
0:00:15.4]} 46. Kf4 {[%clk 0:00:08.5]} 46... Rxd4+ {[%clk 0:00:15.7]} 47. Ke5
{[%clk 0:00:09.4]} 47... Rd3 {[%clk 0:00:15.3]} 48. Kd6 {[%clk 0:00:09.7]} 48...
d4 {[%clk 0:00:14.7]} 49. Kc6 {[%clk 0:00:09.6]} 49... c3 {[%clk 0:00:15]} 50.
bxc3 {[%clk 0:00:09.4]} 50... Rxc3+ {[%clk 0:00:15.4]} 51. Kxb6 {[%clk
0:00:09.5]} 51... d3 {[%clk 0:00:15.9]} 52. Kxa5 {[%clk 0:00:07.8]} 52... Rc2
{[%clk 0:00:16.4]} 53. Rh1 {[%clk 0:00:08.4]} 53... d2 {[%clk 0:00:16.8]} 54.
Rd1 {[%clk 0:00:09.1]} 54... Bh5 {[%clk 0:00:16.5]} 0-1